bitfinex/quotes_BTCUSD_20250610
["timestamp","ask_amount","ask_price","bid_price","bid_amount"]
[1749547683578,2.30435021,109380.0,109370.0,0.03365953]
[1749547684275,2.21255235,109380.0,109370.0,0.01654]
[1749547684910,2.21255235,109380.0,109370.0,0.03365954]
[1749547685144,2.21255235,109380.0,109370.0,0.03365945]
[1749547685555,2.21255235,109380.0,109370.0,0.05015949]
[1749547686191,2.21255235,109380.0,109370.0,0.03304]
[1749547686451,2.21255235,109380.0,109370.0,0.05015936]
[1749547686452,2.30435021,109380.0,109370.0,0.05015936]
[1749547686727,2.30435021,109380.0,109370.0,0.05015933]
[1749547687823,2.30435021,109380.0,109370.0,0.05015929]
[1749547687824,0.6946053,109380.0,109370.0,0.05015929]
[1749547688037,1.70657,109380.0,109370.0,0.050158]
[1749547688245,1.70657,109380.0,109370.0,0.05015606]
[1749547688463,1.70657,109380.0,109370.0,0.03304]
[1749547688898,2.21255235,109380.0,109370.0,0.05015614]
[1749547689331,2.30435021,109380.0,109370.0,0.05015614]
[1749547689964,2.30435021,109380.0,109370.0,0.03304]
[1749547690185,2.30435021,109380.0,109370.0,0.0501553]
[1749547690414,2.30435021,109380.0,109370.0,0.03304]
[1749547690623,2.30435021,109380.0,109370.0,0.05015541]
[1749547691005,2.30435021,109380.0,109370.0,0.05015501]
[1749547691497,2.30435021,109380.0,109370.0,0.05015495]
[1749547691728,2.30435021,109380.0,109370.0,0.03304]
[1749547691936,2.30435021,109380.0,109370.0,0.0501549]
[1749547692357,2.21255235,109380.0,109370.0,0.0501549]
[1749547692995,2.21255235,109380.0,109370.0,0.03304]
[1749547693207,2.21255235,109380.0,109370.0,0.05015487]
[1749547693409,2.21255235,109380.0,109370.0,0.05015491]
[1749547694907,2.21255235,109380.0,109370.0,0.03304]
[1749547695123,2.21255235,109380.0,109370.0,0.05015494]
[1749547695358,2.21255235,109380.0,109370.0,0.05015491]
[1749547695574,2.30435021,109380.0,109370.0,0.05015492]
[1749547695824,2.30435021,109380.0,109370.0,0.05015493]
[1749547696272,2.21255235,109380.0,109370.0,0.05015493]
[1749547696504,2.21255235,109380.0,109370.0,0.03304]
[1749547696732,2.21255235,109380.0,109370.0,0.05015166]
[1749547696949,2.21255235,109380.0,109370.0,0.0501517]
[1749547697163,2.21255235,109380.0,109370.0,0.03304]
[1749547697370,2.21255235,109380.0,109370.0,0.05015183]
[1749547697859,2.30435021,109380.0,109370.0,0.05015183]
[1749547698333,2.30435021,109380.0,109370.0,0.03304]
[1749547698595,2.30435021,109380.0,109370.0,0.05015202]
[1749547698873,2.30435021,109380.0,109370.0,0.0501518]
[1749547699106,2.30435021,109380.0,109370.0,0.03304]
[1749547699399,2.30435021,109380.0,109370.0,0.0501518]
[1749547699642,2.21255235,109380.0,109370.0,0.0501518]
[1749547699879,2.21255235,109380.0,109370.0,0.03304]
[1749547700088,2.21255235,109380.0,109370.0,0.05015185]
[1749547700299,2.21255235,109380.0,109370.0,0.03304]
[1749547700514,2.21255235,109380.0,109370.0,0.05015194]
[1749547700932,2.21255235,109380.0,109370.0,0.03304]
[1749547701140,2.21255235,109380.0,109370.0,0.05015202]
[1749547701340,2.30435021,109380.0,109370.0,0.03365202]
[1749547701956,2.21255235,109380.0,109370.0,0.03365202]
[1749547702187,2.21255235,109380.0,109370.0,0.01654]
[1749547702395,2.21255235,109380.0,109370.0,0.03365202]
[1749547702837,2.21255235,109380.0,109370.0,0.033652]
[1749547703891,2.21255235,109380.0,109370.0,0.03365217]
[1749547704509,2.21255235,109380.0,109370.0,0.01654]
[1749547704725,2.21255235,109380.0,109370.0,0.03365229]
[1749547705160,2.27862517,109380.0,109370.0,0.03365229]
[1749547705379,0.54115162,109370.0,109360.0,0.0182]
[1749547705619,2.15089653,109370.0,109360.0,0.03322017]
[1749547705830,2.15089653,109370.0,109360.0,0.01824847]
[1749547706036,2.15089653,109370.0,109360.0,0.0246652]
[1749547706037,2.24269439,109370.0,109360.0,0.0246652]
[1749547706253,2.24269439,109370.0,109360.0,0.01824847]
[1749547706731,2.27114739,109370.0,109360.0,0.01824847]
[1749547706941,2.27314739,109370.0,109360.0,0.01824847]
[1749547707160,2.27214739,109370.0,109360.0,0.01824847]
[1749547707376,2.27114739,109370.0,109360.0,0.01824847]
[1749547707591,2.27414739,109370.0,109360.0,0.01824847]
[1749547711050,2.28868824,109370.0,109360.0,0.01824847]
[1749547711264,2.04997321,109360.0,109350.0,4e-05]
[1749547711470,2.23356893,109360.0,109350.0,4e-05]
[1749547711924,3.81605683,109360.0,109350.0,4e-05]
[1749547712137,2.04999077,109350.0,109340.0,0.002]
[1749547712365,2.14178863,109350.0,109340.0,0.002]
[1749547712785,2.16924663,109350.0,109340.0,0.002]
[1749547712993,2.26104449,109350.0,109340.0,0.002]
[1749547713741,2.26204449,109350.0,109340.0,0.002]
[1749547713966,2.26304449,109350.0,109340.0,0.002]
[1749547714426,2.27924449,109350.0,109340.0,0.002]
[1749547715158,2.29534449,109350.0,109340.0,0.002]
[1749547715391,2.26304449,109350.0,109340.0,0.002]
[1749547717117,2.26198321,109350.0,109340.0,0.002]
[1749547722558,2.32652406,109350.0,109340.0,0.002]
[1749547722760,0.19206128,109340.0,109330.0,0.0163]
[1749547723027,2.32051283,109340.0,109330.0,0.0163]
[1749547723352,0.5466197,109330.0,109320.0,0.10701835]
[1749547723564,1.65038226,109330.0,109320.0,0.1240795]
[1749547723776,1.65038226,109330.0,109320.0,0.12407944]
[1749547723979,1.65038226,109330.0,109320.0,0.10701835]
[1749547724625,1.67784226,109330.0,109320.0,0.10716387]
[1749547724833,1.67884226,109330.0,109320.0,0.10716387]
[1749547725684,1.67884226,109330.0,109320.0,0.03454552]
[1749547726332,1.77064012,109330.0,109320.0,0.03454552]
[1749547726980,2.28565342,109330.0,109320.0,0.00214552]
[1749547727631,1.77967107,109330.0,109320.0,0.00214552]
[1749547728063,2.28565342,109330.0,109320.0,0.00214552]
[1749547729276,2.28565342,109330.0,109320.0,0.01764552]
[1749547729685,2.28565342,109330.0,109320.0,0.03304552]
[1749547729892,1.77967107,109330.0,109320.0,0.03304552]
[1749547732969,2.28565342,109330.0,109320.0,0.03304552]
[1749547733396,1.77967107,109330.0,109320.0,0.03304552]
[1749547734657,1.77967107,109330.0,109320.0,0.03308552]
[1749547738578,1.77967107,109330.0,109320.0,0.05017579]
[1749547738779,1.77967107,109330.0,109320.0,0.03308552]
[1749547738992,1.77967107,109330.0,109320.0,0.05017579]
[1749547739608,1.68787321,109330.0,109320.0,0.05017579]
[1749547740029,1.16735001,109330.0,109320.0,0.05017482]
[1749547740244,1.16735001,109330.0,109320.0,0.03308552]
[1749547740457,0.66136766,109330.0,109320.0,0.05657886]
[1749547740677,0.82735001,109330.0,109320.0,0.05657684]
[1749547740888,0.79989001,109330.0,109320.0,0.05016926]
[1749547741102,0.63390766,109330.0,109320.0,0.05657556]
[1749547741303,1.13989001,109330.0,109320.0,0.05657556]
[1749547741930,1.13989001,109330.0,109320.0,0.05658647]
[1749547742139,1.13989001,109330.0,109320.0,0.0394919]
[1749547742350,1.13989001,109330.0,109320.0,0.03949598]
[1749547742553,1.13989001,109330.0,109320.0,0.0501801]
[1749547742753,1.13989001,109330.0,109320.0,0.03308552]
[1749547742961,1.13989001,109330.0,109320.0,0.05659055]
[1749547743375,1.14010686,109330.0,109320.0,0.05659055]
[1749547744017,1.14010686,109330.0,109320.0,0.03949659]
[1749547744423,1.14010686,109330.0,109320.0,0.03308552]
[1749547744572,1.14010686,109330.0,109320.0,0.05659279]
[1749547744990,0.5421098,109330.0,109320.0,0.05659279]
[1749547745214,0.53307885,109330.0,109320.0,0.05659279]
[1749547745608,0.53307885,109330.0,109320.0,0.05658192]
[1749547745832,0.53307885,109330.0,109320.0,0.03949358]
[1749547746055,0.53307885,109330.0,109320.0,0.0501736]
[1749547746256,0.53307885,109330.0,109320.0,0.05658161]
[1749547746391,0.53307885,109330.0,109320.0,0.05658156]
[1749547746606,1.03927805,109330.0,109320.0,0.05658156]
[1749547746800,0.53307885,109330.0,109320.0,0.05658144]
[1749547746999,1.03927805,109330.0,109320.0,0.05658144]
[1749547747201,0.53307885,109330.0,109320.0,0.05658144]
[1749547747400,0.53307885,109330.0,109320.0,0.08396409]
[1749547747599,0.53307885,109330.0,109320.0,0.06687585]
[1749547747801,0.53307885,109330.0,109320.0,0.08396158]
[1749547748006,0.53307885,109330.0,109320.0,0.06046817]
[1749547748230,0.53307885,109330.0,109320.0,0.06687546]
[1749547748437,0.53307885,109330.0,109320.0,0.08396163]
[1749547748650,0.53307885,109330.0,109320.0,0.05657898]
[1749547748823,0.53307885,109330.0,109320.0,0.08396163]
[1749547749022,0.53307885,109330.0,109320.0,0.08396155]
[1749547749226,0.53307885,109330.0,109320.0,0.05017169]
[1749547749598,0.53307885,109330.0,109320.0,0.05017147]
[1749547749833,0.53307885,109330.0,109320.0,0.03949273]
[1749547750014,0.53307885,109330.0,109320.0,0.05657873]
[1749547751125,0.53307885,109330.0,109320.0,0.05657554]
[1749547751323,0.53307885,109330.0,109320.0,0.05656692]
[1749547751527,0.53307885,109330.0,109320.0,0.03948954]
[1749547751936,1.03927805,109330.0,109320.0,0.05656712]
[1749547752352,1.03927805,109330.0,109320.0,0.05656684]
[1749547752571,1.03927805,109330.0,109320.0,0.05656779]
[1749547752769,1.03927805,109330.0,109320.0,0.05656844]
[1749547752954,1.03927805,109330.0,109320.0,0.05656851]
[1749547753166,1.03927805,109330.0,109320.0,0.03948992]
[1749547753578,1.03927805,109330.0,109320.0,0.05656919]
[1749547753821,1.03927805,109330.0,109320.0,0.06510886]
[1749547754034,1.03927805,109330.0,109320.0,0.06510933]
[1749547754239,1.03927805,109330.0,109320.0,0.06510938]
[1749547754434,1.03927805,109330.0,109320.0,0.06510712]
[1749547754680,1.03927805,109330.0,109320.0,0.06510562]
[1749547754998,1.03927805,109330.0,109320.0,0.03308552]
[1749547755459,1.03927805,109330.0,109320.0,0.05870526]
[1749547755657,1.03927805,109330.0,109320.0,0.06511019]
[1749547756322,1.03927805,109330.0,109320.0,0.0480304]
[1749547756588,1.03927805,109330.0,109320.0,0.03308552]
[1749547756789,1.03927805,109330.0,109320.0,0.03949045]
[1749547756996,1.14561676,109330.0,109320.0,0.06511033]
[1749547757208,1.14561676,109330.0,109320.0,0.0651127]
[1749547757443,1.17307576,109330.0,109320.0,0.06511301]
[1749547758467,1.17307576,109330.0,109320.0,0.05657841]
[1749547758671,1.17307576,109330.0,109320.0,0.06512128]
[1749547758894,1.17307576,109330.0,109320.0,0.06512129]
[1749547759652,1.17307576,109330.0,109320.0,0.06512216]
[1749547759855,1.17307576,109330.0,109320.0,0.06512329]
[1749547760065,1.67822496,109330.0,109320.0,0.0342255]
[1749547760404,1.17202576,109330.0,109320.0,0.03422567]
[1749547761021,1.17202576,109330.0,109320.0,0.02781768]
[1749547761247,1.67822496,109330.0,109320.0,0.03422745]
[1749547761453,1.17202576,109330.0,109320.0,0.03422745]
[1749547761663,1.17202576,109330.0,109320.0,0.0342319]
[1749547761873,1.17202576,109330.0,109320.0,0.00859428]
[1749547762077,1.67822496,109330.0,109320.0,0.02568701]
[1749547762278,1.67822496,109330.0,109320.0,0.02568828]
[1749547762898,1.67822496,109330.0,109320.0,0.02568885]
[1749547763097,1.67822496,109330.0,109320.0,0.02569021]
[1749547763306,1.77002282,109330.0,109320.0,0.02569021]
[1749547763511,1.78602282,109330.0,109320.0,0.01928037]
[1749547763712,1.80142282,109330.0,109320.0,0.01928037]
[1749547764133,1.80142282,109330.0,109320.0,0.01928169]
[1749547765506,1.80142282,109330.0,109320.0,0.00218552]
[1749547765864,1.80142282,109330.0,109320.0,0.01928211]
[1749547766065,1.80142282,109330.0,109320.0,0.01928213]
[1749547766066,1.70962496,109330.0,109320.0,0.01928213]
[1749547767297,1.70962496,109330.0,109320.0,0.01928729]
[1749547767542,1.70962496,109330.0,109320.0,0.00218552]
[1749547767746,1.70962496,109330.0,109320.0,0.01928762]
[1749547768096,1.70962496,109330.0,109320.0,0.00218552]
[1749547768893,1.70962496,109330.0,109320.0,0.01928329]
[1749547769093,1.70962496,109330.0,109320.0,0.00218552]
[1749547769436,1.70962496,109330.0,109320.0,0.01928329]
[1749547769813,1.70962496,109330.0,109320.0,0.00218552]
[1749547769998,1.70962496,109330.0,109320.0,0.0192823]
[1749547770415,1.70962496,109330.0,109320.0,0.01928227]
[1749547770613,1.70962496,109330.0,109320.0,0.01928225]
[1749547771459,1.70962496,109330.0,109320.0,0.00218552]
[1749547772007,1.78602282,109330.0,109320.0,0.00218552]
[1749547772414,1.77002282,109330.0,109320.0,0.00218552]
[1749547774373,1.67822496,109330.0,109320.0,0.00218552]
[1749547780170,1.67822496,109330.0,109320.0,0.01928157]
[1749547780374,1.67822496,109330.0,109320.0,0.00218552]
[1749547780582,1.67822496,109330.0,109320.0,0.01928157]
[1749547780814,1.67822496,109330.0,109320.0,0.01928156]
[1749547781025,1.17202576,109330.0,109320.0,0.03338552]
[1749547781238,1.17202576,109330.0,109320.0,0.05048059]
[1749547781727,1.17202576,109330.0,109320.0,0.05048136]
[1749547782363,1.17202576,109330.0,109320.0,0.05048895]
[1749547782577,1.17202576,109330.0,109320.0,0.05048905]
[1749547782784,1.17202576,109330.0,109320.0,0.03338552]
[1749547783016,1.17202576,109330.0,109320.0,0.05048931]
[1749547783655,1.17202576,109330.0,109320.0,0.05049405]
[1749547783864,1.17202576,109330.0,109320.0,0.05049515]
[1749547784075,1.17202576,109330.0,109320.0,0.05049534]
[1749547784497,1.17202576,109330.0,109320.0,0.03338552]
[1749547784708,1.17202576,109330.0,109320.0,0.0504951]
[1749547785559,1.17202576,109330.0,109320.0,0.0505]
[1749547785971,1.17202576,109330.0,109320.0,0.05049981]
[1749547786391,1.17202576,109330.0,109320.0,0.05049993]
[1749547786638,1.17202576,109330.0,109320.0,0.03338552]
[1749547786853,1.17202576,109330.0,109320.0,0.05049993]
[1749547787510,1.17202576,109330.0,109320.0,0.03338552]
[1749547787723,1.17202576,109330.0,109320.0,0.05050419]
[1749547787947,1.17202576,109330.0,109320.0,0.05050418]
[1749547788247,1.17202576,109330.0,109320.0,0.03338552]
[1749547788870,1.26382362,109330.0,109320.0,0.03338552]
[1749547789076,1.26382362,109330.0,109320.0,0.05057572]
[1749547789279,1.77002282,109330.0,109320.0,0.05057572]
[1749547789693,1.67822496,109330.0,109320.0,0.05057572]
[1749547789901,1.67822496,109330.0,109320.0,0.03345704]
[1749547790325,1.67822496,109330.0,109320.0,0.05057812]
[1749547791184,1.67822496,109330.0,109320.0,0.03345704]
[1749547791467,1.67822496,109330.0,109320.0,0.05058257]
[1749547791870,1.67822496,109330.0,109320.0,0.03345704]
[1749547793438,1.17202576,109330.0,109320.0,0.03345704]
[1749547793646,0.83202576,109330.0,109320.0,0.03345704]
[1749547793868,0.80456676,109330.0,109320.0,0.06180537]
[1749547794337,1.14456676,109330.0,109320.0,0.06180537]
[1749547794573,1.14456676,109330.0,109320.0,0.05538233]
[1749547795196,1.14456676,109330.0,109320.0,0.07893716]
[1749547795828,0.63836756,109330.0,109320.0,0.07893716]
[1749547796044,1.14456676,109330.0,109320.0,0.07251312]
[1749547796257,1.14456676,109330.0,109320.0,0.07893715]
[1749547796458,1.14456676,109330.0,109320.0,0.05538233]
[1749547796906,1.14456676,109330.0,109320.0,0.07893717]
[1749547797133,1.14456676,109330.0,109320.0,0.06180637]
[1749547797350,1.14456676,109330.0,109320.0,0.07893709]
[1749547797560,1.14456676,109330.0,109320.0,0.06180637]
[1749547797773,1.14456676,109330.0,109320.0,0.07892213]
[1749547798402,1.14456676,109330.0,109320.0,0.07892156]
[1749547798622,1.14456676,109330.0,109320.0,0.07250183]
[1749547798832,1.14456676,109330.0,109320.0,0.07892164]
[1749547799895,1.14456676,109330.0,109320.0,0.07891652]
[1749547800111,1.14356676,109330.0,109320.0,0.07891652]
[1749547800745,1.14356676,109330.0,109320.0,0.07891475]
[1749547801181,1.14356676,109330.0,109320.0,0.07249752]
[1749547801397,1.64988652,109330.0,109320.0,0.07891578]
[1749547801610,1.64988652,109330.0,109320.0,0.07891571]
[1749547801862,1.64988652,109330.0,109320.0,0.05538233]
[1749547802086,1.64988652,109330.0,109320.0,0.06180028]
[1749547802305,1.64988652,109330.0,109320.0,0.07891488]
[1749547804037,1.23548259,109330.0,109320.0,0.07891083]
[1749547804249,1.14368473,109330.0,109320.0,0.07891004]
[1749547804525,1.14368473,109330.0,109320.0,0.07890868]
[1749547804734,1.14368473,109330.0,109320.0,0.07890827]
[1749547805157,1.14368473,109330.0,109320.0,0.07890801]
[1749547805367,1.14368473,109330.0,109320.0,0.07890796]
[1749547805576,1.14368473,109330.0,109320.0,0.06179841]
[1749547805806,1.14368473,109330.0,109320.0,0.07890799]
[1749547806868,1.14368473,109330.0,109320.0,0.07890797]
[1749547807114,1.14368473,109330.0,109320.0,0.07890823]
[1749547807534,0.63736756,109330.0,109320.0,0.07890823]
[1749547807717,1.14368473,109330.0,109320.0,0.07890823]
[1749547807952,1.23548259,109330.0,109320.0,0.07890823]
[1749547808163,1.23548259,109330.0,109320.0,0.07890893]
[1749547808386,1.23548259,109330.0,109320.0,0.07890943]
[1749547808655,1.23548259,109330.0,109320.0,0.07249295]
[1749547808879,1.23548259,109330.0,109320.0,0.07890943]
[1749547809093,1.23548259,109330.0,109320.0,0.07890947]
[1749547809322,1.23548259,109330.0,109320.0,0.07891181]
[1749547809768,1.23548259,109330.0,109320.0,0.07891163]
[1749547810603,1.23548259,109330.0,109320.0,0.06179888]
[1749547810821,1.23548259,109330.0,109320.0,0.06179849]
[1749547811046,1.23548259,109330.0,109320.0,0.0789089]
[1749547811285,1.23548259,109330.0,109320.0,0.07890821]
[1749547811499,1.14368473,109330.0,109320.0,0.07890821]
[1749547811715,1.14368473,109330.0,109320.0,0.07890887]
[1749547811932,1.14368473,109330.0,109320.0,0.07890888]
[1749547812410,1.14368473,109330.0,109320.0,0.07891097]
[1749547812635,1.14368473,109330.0,109320.0,0.07891091]
[1749547812852,1.14368473,109330.0,109320.0,0.06179923]
[1749547813081,1.14368473,109330.0,109320.0,0.07891079]
[1749547813808,1.14368473,109330.0,109320.0,0.07891158]
[1749547814041,1.14368473,109330.0,109320.0,0.0789119]
[1749547814275,1.14368473,109330.0,109320.0,0.06179947]
[1749547814514,1.14368473,109330.0,109320.0,0.0724947]
[1749547814729,1.14368473,109330.0,109320.0,0.07891485]
[1749547815462,1.12914388,109330.0,109320.0,0.07891485]
[1749547815709,0.53102885,109330.0,109320.0,0.07891485]
[1749547815924,1.03734602,109330.0,109320.0,0.07892087]
[1749547816139,1.03734602,109330.0,109320.0,0.07891985]
[1749547816772,0.53102885,109330.0,109320.0,0.07891856]
[1749547816991,1.03734602,109330.0,109320.0,0.07891529]
[1749547817657,1.03734602,109330.0,109320.0,0.0618004]
[1749547817876,1.03734602,109330.0,109320.0,0.05538233]
[1749547818079,1.03734602,109330.0,109320.0,0.07891529]
[1749547818508,0.53102885,109330.0,109320.0,0.07891527]
[1749547818977,0.53102885,109330.0,109320.0,0.10627567]
[1749547819191,1.03734602,109330.0,109320.0,0.10627418]
[1749547819398,1.03734602,109330.0,109320.0,0.09985433]
[1749547819607,1.03734602,109330.0,109320.0,0.10627118]
[1749547819859,0.53102885,109330.0,109320.0,0.10627118]
[1749547820065,1.03734602,109330.0,109320.0,0.10627118]
[1749547820492,1.03734602,109330.0,109320.0,0.10627126]
[1749547820906,0.53102885,109330.0,109320.0,0.10628011]
[1749547821133,0.53102885,109330.0,109320.0,0.10628012]
[1749547821344,1.03734602,109330.0,109320.0,0.10628013]
[1749547822191,1.03734602,109330.0,109320.0,0.08916043]
[1749547822429,1.03734602,109330.0,109320.0,0.10627431]
[1749547822850,1.03734602,109330.0,109320.0,0.10627435]
[1749547823903,1.03734602,109330.0,109320.0,0.10627189]
[1749547824096,1.03734602,109330.0,109320.0,0.09985419]
[1749547824310,1.03734602,109330.0,109320.0,0.10627098]
[1749547824729,1.03734602,109330.0,109320.0,0.08915952]
[1749547824963,1.03734602,109330.0,109320.0,0.10627098]
[1749547825385,1.03716334,109330.0,109320.0,0.10627098]
[1749547825598,1.03716334,109330.0,109320.0,0.10627056]
[1749547825807,1.03716334,109330.0,109320.0,0.09985388]
[1749547826010,0.53102885,109330.0,109320.0,0.09985388]
[1749547826249,0.53102885,109330.0,109320.0,0.10627052]
[1749547826470,1.03716334,109330.0,109320.0,0.10627052]
[1749547826681,1.03716334,109330.0,109320.0,0.08915939]
[1749547826889,1.03716334,109330.0,109320.0,0.10626871]
[1749547827095,1.03716334,109330.0,109320.0,0.10626797]
[1749547827306,1.03718746,109330.0,109320.0,0.10626767]
[1749547828176,0.53102885,109330.0,109320.0,0.10626767]
[1749547828387,1.03718746,109330.0,109320.0,0.10626767]
[1749547828887,1.70655155,109330.0,109320.0,0.0477084]
[1749547829136,1.68158478,109330.0,109320.0,0.04771]
[1749547829356,1.17542617,109330.0,109320.0,0.03434154]
[1749547829575,1.14352617,109330.0,109320.0,0.03434154]
[1749547830008,1.14352617,109330.0,109320.0,0.03434524]
[1749547830427,1.14352617,109330.0,109320.0,0.03434528]
[1749547830642,1.66468478,109330.0,109320.0,0.02578845]
[1749547830857,1.66468478,109330.0,109320.0,0.03434532]
[1749547831067,1.68038478,109330.0,109320.0,0.03434532]
[1749547831287,1.77218264,109330.0,109320.0,0.03434532]
[1749547831711,1.68038478,109330.0,109320.0,0.03434532]
[1749547831917,1.68038478,109330.0,109320.0,0.01937068]
[1749547832134,1.68038478,109330.0,109320.0,0.03434511]
[1749547833015,1.68038478,109330.0,109320.0,0.03434475]
[1749547833439,1.68038478,109330.0,109320.0,0.02792641]
[1749547833649,1.68038478,109330.0,109320.0,0.03434376]
[1749547833856,1.68038478,109330.0,109320.0,0.03434377]
[1749547834059,1.77218264,109330.0,109320.0,0.03434377]
[1749547834494,1.77218264,109330.0,109320.0,0.03434342]
[1749547834919,1.77218264,109330.0,109320.0,0.03434496]
[1749547835157,1.77218264,109330.0,109320.0,0.02792738]
[1749547836217,1.77218264,109330.0,109320.0,0.01937091]
[1749547836447,1.77218264,109330.0,109320.0,0.01937014]
[1749547836663,1.68038478,109330.0,109320.0,0.01936844]
[1749547836893,1.64968478,109330.0,109320.0,0.01936836]
[1749547837103,1.14352617,109330.0,109320.0,0.02792393]
[1749547837570,1.14352617,109330.0,109320.0,0.02792362]
[1749547837808,1.23532403,109330.0,109320.0,0.0279236]
[1749547838011,1.23532403,109330.0,109320.0,0.02792363]
[1749547838231,1.74148264,109330.0,109320.0,0.02792363]
[1749547839072,1.74148264,109330.0,109320.0,0.02792269]
[1749547839283,1.74148264,109330.0,109320.0,0.01936621]
[1749547839516,1.74148264,109330.0,109320.0,0.01936622]
[1749547839736,1.74148264,109330.0,109320.0,0.00225704]
[1749547839951,1.64968478,109330.0,109320.0,0.01936626]
[1749547840161,1.14352617,109330.0,109320.0,0.01936626]
[1749547840592,1.14352617,109330.0,109320.0,0.03526626]
[1749547840804,1.14352617,109330.0,109320.0,0.05023488]
[1749547841228,0.63736756,109330.0,109320.0,0.05023278]
[1749547841449,1.14352617,109330.0,109320.0,0.06653278]
[1749547842072,1.12898532,109330.0,109320.0,0.06653196]
[1749547842289,1.12898532,109330.0,109320.0,0.04942484]
[1749547842496,1.12898532,109330.0,109320.0,0.0579759]
[1749547843815,1.12898532,109330.0,109320.0,0.04087004]
[1749547844038,1.12898532,109330.0,109320.0,0.05797138]
[1749547844247,1.12898532,109330.0,109320.0,0.03445704]
[1749547844487,1.12898532,109330.0,109320.0,0.05797142]
[1749547845551,1.12898532,109330.0,109320.0,0.05796987]
[1749547845766,1.12898532,109330.0,109320.0,0.04086961]
[1749547845981,1.12898532,109330.0,109320.0,0.05155725]
[1749547846201,0.62282671,109330.0,109320.0,0.05796978]
[1749547846421,1.12898532,109330.0,109320.0,0.05796978]
[1749547846884,1.12898532,109330.0,109320.0,0.0408696]
[1749547847121,1.12898532,109330.0,109320.0,0.05797057]
[1749547847337,1.12898532,109330.0,109320.0,0.05797021]
[1749547848231,1.03718746,109330.0,109320.0,0.05797021]
[1749547848464,1.03718746,109330.0,109320.0,0.05155641]
[1749547848707,1.03718746,109330.0,109320.0,0.05796852]
[1749547848939,1.03718746,109330.0,109320.0,0.05796809]
[1749547849840,1.03718746,109330.0,109320.0,0.04086914]
[1749547850047,1.03718746,109330.0,109320.0,0.04086859]
[1749547850259,1.03718746,109330.0,109320.0,0.05796604]
[1749547850519,1.03718746,109330.0,109320.0,0.05796606]
[1749547850742,1.03718746,109330.0,109320.0,0.05796631]
[1749547850974,1.03718746,109330.0,109320.0,0.05796632]
[1749547851182,1.03718746,109330.0,109320.0,0.03445704]
[1749547851396,1.03718746,109330.0,109320.0,0.05796486]
[1749547851612,0.53102885,109330.0,109320.0,0.05796486]
[1749547851896,1.03718746,109330.0,109320.0,0.05796486]
[1749547852133,0.53102885,109330.0,109320.0,0.05155364]
[1749547852348,1.03718746,109330.0,109320.0,0.05796534]
[1749547852568,1.03718746,109330.0,109320.0,0.05796528]
[1749547852774,1.03718746,109330.0,109320.0,0.05155394]
[1749547853025,1.03718746,109330.0,109320.0,0.05796528]
[1749547853291,1.03718746,109330.0,109320.0,0.08532273]
[1749547853496,1.03718746,109330.0,109320.0,0.08532243]
[1749547853912,1.03718746,109330.0,109320.0,0.07891003]
[1749547854117,1.03718746,109330.0,109320.0,0.08532101]
[1749547854323,1.03718746,109330.0,109320.0,0.06181449]
[1749547854542,1.03718746,109330.0,109320.0,0.06822601]
[1749547854748,1.03718746,109330.0,109320.0,0.08532342]
[1749547855381,1.03718746,109330.0,109320.0,0.06181449]
[1749547855870,1.03718746,109330.0,109320.0,0.07891192]
[1749547856082,1.03718746,109330.0,109320.0,0.08532347]
[1749547856496,1.03718746,109330.0,109320.0,0.06822604]
[1749547856706,1.03718746,109330.0,109320.0,0.06181449]
[1749547857347,1.03718746,109330.0,109320.0,0.08532475]
[1749547857785,1.03718746,109330.0,109320.0,0.0853222]
[1749547858023,0.53102885,109330.0,109320.0,0.0853222]
[1749547858293,0.53102885,109330.0,109320.0,0.07891029]
[1749547858510,1.03718746,109330.0,109320.0,0.08532124]
[1749547858724,1.03718746,109330.0,109320.0,0.06822544]
[1749547858934,1.03718746,109330.0,109320.0,0.08532129]
[1749547859153,0.53102885,109330.0,109320.0,0.08532128]
[1749547859595,0.20017521,109330.0,109320.0,0.09673106]
[1749547860018,0.20017521,109330.0,109320.0,0.07963521]
[1749547860235,0.20017521,109330.0,109320.0,0.09443468]
[1749547860443,0.54017521,109330.0,109320.0,0.0944348]
[1749547860654,0.54017521,109330.0,109320.0,0.09443489]
[1749547860875,0.54017521,109330.0,109320.0,0.09443542]
[1749547861308,0.54017521,109330.0,109320.0,0.12178306]
[1749547861517,0.54017521,109330.0,109320.0,0.11537456]
[1749547861731,0.54017521,109330.0,109320.0,0.12278036]
[1749547862160,0.54017521,109330.0,109320.0,0.12277315]
[1749547862377,0.54017521,109330.0,109320.0,0.11636671]
[1749547862591,0.54017521,109330.0,109320.0,0.08629205]
[1749547863527,0.54017521,109330.0,109320.0,0.08629121]
[1749547863740,0.54017521,109330.0,109320.0,0.08628983]
[1749547863951,0.54017521,109330.0,109320.0,0.08628978]
[1749547864158,0.54017521,109330.0,109320.0,0.08628961]
[1749547865067,0.20017521,109330.0,109320.0,0.08628961]
[1749547865247,0.20017521,109330.0,109320.0,0.08628991]
[1749547865493,0.20017521,109330.0,109320.0,0.07988485]
[1749547865703,0.20017521,109330.0,109320.0,0.08628991]
[1749547866398,0.20017521,109330.0,109320.0,0.07988485]
[1749547866610,0.20017521,109330.0,109320.0,0.08628983]
[1749547866821,0.20017521,109330.0,109320.0,0.08629365]
[1749547867500,0.70626311,109330.0,109320.0,0.08629365]
[1749547867709,0.70626311,109330.0,109320.0,0.06921117]
[1749547867921,0.70626311,109330.0,109320.0,0.08629509]
[1749547868136,0.70626311,109330.0,109320.0,0.08629535]
[1749547868577,0.70626311,109330.0,109320.0,0.12277598]
[1749547868983,0.70626311,109330.0,109320.0,0.12277585]
[1749547869191,0.70626311,109330.0,109320.0,0.11636928]
[1749547869398,0.70626311,109330.0,109320.0,0.09928521]
[1749547869622,0.20017521,109330.0,109320.0,0.10569412]
[1749547869861,0.20017521,109330.0,109320.0,0.12278455]
[1749547869862,0.70626311,109330.0,109320.0,0.12278455]
[1749547870083,0.70626311,109330.0,109320.0,0.11637564]
[1749547870288,0.70626311,109330.0,109320.0,0.09928521]
[1749547870500,0.70626311,109330.0,109320.0,0.11637555]
[1749547870712,0.70626311,109330.0,109320.0,0.10569408]
[1749547870933,0.70626311,109330.0,109320.0,0.1227844]
[1749547871420,1.04626311,109330.0,109320.0,0.12279258]
[1749547871648,1.04626311,109330.0,109320.0,0.12279564]
[1749547871868,1.04626311,109330.0,109320.0,0.12279563]
[1749547872533,1.04626311,109330.0,109320.0,0.10569714]
[1749547872760,1.04626311,109330.0,109320.0,0.10569715]
[1749547872981,1.04626311,109330.0,109320.0,0.12279565]
[1749547873840,1.04626311,109330.0,109320.0,0.12279688]
[1749547874270,1.04626311,109330.0,109320.0,0.12280017]
[1749547874497,0.54017521,109330.0,109320.0,0.12280017]
[1749547874707,1.04626311,109330.0,109320.0,0.12280017]
[1749547875574,1.04626311,109330.0,109320.0,0.11638701]
[1749547875804,1.04626311,109330.0,109320.0,0.12279949]
[1749547876244,0.00921595,109340.0,109330.0,0.2322]
[1749547876497,0.2103139,109360.0,109350.0,0.23]
[1749547876725,0.19202669,109360.0,109350.0,0.31731162]
[1749547876955,0.19202669,109360.0,109350.0,0.31181355]